{"text_format":"3","workbook":"xlsx","n_sheets":2,"sheets":["AKO POUŽÍVAŤ TENTO HÁROK","KLASIFIKAČNÝ HÁROK"],"not_rendered":{"defined_names":7},"read":"whole","date_system":"1900"}

{"sheet":"AKO POUŽÍVAŤ TENTO HÁROK","index":0,"n_rows":10,"n_cols":2,"rows_kept":10}
[null,"POKYNY"]
[null,"Pomocou hárka KLASIFIKAČNÝ HÁROK môžete vypočítať klasifikáciu, pri ktorej má každá priradená úloha individuálne stanovenú bodovú hodnotu. "]
[null,"Pokyny: Nezabudnite si uložiť záložné kópie klasifikácie."]
[null,"1. Zadajte názov školy, informácie o vyučovacom predmete, mená študentov a ID študentov (voliteľné).   "]
[null,"2. Upravte tabuľku klasifikácie a študijného priemeru tak, aby zodpovedala typickému systému hodnotenia, ktorý používate."]
[null,"3. Počínajúc od bunky H8 zadajte názvy priradených úloh, kvízov alebo testov (napr. Kvíz 1) spolu s ich bodovou hodnotou. "]
[null,"4. Zadajte skóre jednotlivých študentov za jednotlivé priradené úlohy alebo testy. Stĺpce Priemer, Skóre, Klasifikácia a Študijný priemer sa vypočítajú automaticky, v prípade potreby ich však môžete prepísať. Ak chcete udeliť kreditné body navyše, jednoducho pri niektorej priradenej úlohe zadajte viac bodov, ako je celkový možný počet bodov uvedený pre danú priradenú úlohu."]
[null,"Ak chcete zmeniť oblasť tlače, použite príkaz Oblasť tlače v ponuke Rozloženie strany."]
[null,"Skóre na príslušnú klasifikáciu vychádzajú zo štandardného percentuálneho rozsahu podľa celkového počtu bodov priradeného v riadkoch 8 a 9. Upravte jednotlivé priradené úlohy alebo testy na požadovaný počet bodov a potom upravte percentuálnu hodnotu príslušnej klasifikácie. Ak chcete vykonať manuálne zmeny, prepíšte bunky Skóre."]
[null,"Do buniek H8 až X9 zadajte jednotlivé priradené úlohy, kvízy alebo testy a ich bodové hodnoty."]

{"sheet":"KLASIFIKAČNÝ HÁROK","index":1,"n_rows":24,"n_cols":24,"rows_kept":24,"merged":[[1,1,2,6],[3,1,3,6],[4,1,6,6],[7,4,7,6],[8,4,8,6],[10,4,10,6],[11,4,11,6],[19,1,19,6],[20,1,20,2],[20,3,20,4],[21,1,21,2],[21,3,21,4],[22,1,22,2],[22,3,22,4],[23,1,23,2],[23,3,23,4]]}
[null,"NÁZOV ŠKOLY"]
[null,"Meno učiteľa"]
[{"$nulls":7},"Skóre",{"$f":"I4*CelkovýPočetBodov","v":118},120,126,134,140,{"v":145.6666666666666,"d":"146"},154,160,166,174,180,186,194]
[null,"Vyučovací predmet/projekt",{"$nulls":5},"%",{"v":0.59,"d":"59%"},{"v":0.6,"d":"60%"},{"v":0.63,"d":"63%"},{"v":0.67,"d":"67%"},{"v":0.7,"d":"70%"},{"v":0.728333333333333,"d":"73%"},{"v":0.77,"d":"77%"},{"v":0.8,"d":"80%"},{"v":0.83,"d":"83%"},{"v":0.87,"d":"87%"},{"v":0.9,"d":"90%"},{"v":0.93,"d":"93%"},{"v":0.97,"d":"97%"}]
[null,"Rok/semester/štvrťrok",{"$nulls":5},"Klasifikácia","F","D-","D","D+","C-","C","C+","B-","B","B+","A-","A","A+"]
[{"$nulls":7},"Študijný priemer",0,0.67,1,1.33,1.67,2,2.33,2.67,3,3.33,3.67,4,4]
[]
[{"$nulls":4},"Názov priradenej úlohy alebo testu",null,null,"HV1","HV2","Š1"]
[{"$nulls":4},"Celkový počet dostupných bodov",null,null,50,50,100]
[]
[{"$nulls":4},"Celkový počet priradených úloh a testov:",null,null,{"$f":"COUNTA(H8:X8)","v":3}]
[{"$nulls":4},"Celkový možný počet bodov:",null,null,{"$f":"SUM(H9:X9)","v":200}]
[]
[null,"Meno študenta","ID študenta","Priemer","Skóre","Klasifikácia","Študijný priemer","Stĺpec6","Stĺpec7","Stĺpec8","Stĺpec9","Stĺpec10","Stĺpec11","Stĺpec12","Stĺpec13","Stĺpec14","Stĺpec15","Stĺpec16","Stĺpec17","Stĺpec18","Stĺpec19","Stĺpec20","Stĺpec21","Stĺpec22"]
[null,"Študent číslo 1",null,{"$f":"IFERROR(IF(COUNT(Klasifikácia[[#This Row],[Stĺpec6]:[Stĺpec22]])=0,\"\",SUM(Klasifikácia[[#This Row],[Stĺpec6]:[Stĺpec22]])/CelkovýPočetBodov),\"\")","v":{"v":0.91,"d":"91.0%"}},{"$f":"IF(COUNT(Klasifikácia[[#This Row],[Stĺpec6]:[Stĺpec22]])=0,\"\",SUM(Klasifikácia[[#This Row],[Stĺpec6]:[Stĺpec22]]))","v":182},{"$f":"IFERROR(IF(Klasifikácia[[#This Row],[Priemer]]<>\"\",HLOOKUP(Klasifikácia[[#This Row],[Priemer]]*CelkovýPočetBodov,KlasifikačnýHárok,3),\"\"),0)","v":"A-"},{"$f":"IFERROR(IF(Klasifikácia[[#This Row],[Priemer]]<>\"\",HLOOKUP(Klasifikácia[[#This Row],[Priemer]]*CelkovýPočetBodov,KlasifikačnýHárok,4),\"\"),0)","v":3.67},45,45,92]
[null,"Študent číslo 2",null,{"$f":"IFERROR(IF(COUNT(Klasifikácia[[#This Row],[Stĺpec6]:[Stĺpec22]])=0,\"\",SUM(Klasifikácia[[#This Row],[Stĺpec6]:[Stĺpec22]])/CelkovýPočetBodov),\"\")","v":{"v":1,"d":"100.0%"}},{"$f":"IF(COUNT(Klasifikácia[[#This Row],[Stĺpec6]:[Stĺpec22]])=0,\"\",SUM(Klasifikácia[[#This Row],[Stĺpec6]:[Stĺpec22]]))","v":200},{"$f":"IFERROR(IF(Klasifikácia[[#This Row],[Priemer]]<>\"\",HLOOKUP(Klasifikácia[[#This Row],[Priemer]]*CelkovýPočetBodov,KlasifikačnýHárok,3),\"\"),0)","v":"A+"},{"$f":"IFERROR(IF(Klasifikácia[[#This Row],[Priemer]]<>\"\",HLOOKUP(Klasifikácia[[#This Row],[Priemer]]*CelkovýPočetBodov,KlasifikačnýHárok,4),\"\"),0)","v":{"v":4,"d":"4.00"}},50,50,100]
[{"$nulls":3},{"$f":"IFERROR(IF(COUNT(Klasifikácia[[#This Row],[Stĺpec6]:[Stĺpec22]])=0,\"\",SUM(Klasifikácia[[#This Row],[Stĺpec6]:[Stĺpec22]])/CelkovýPočetBodov),\"\")","v":""},{"$f":"IF(COUNT(Klasifikácia[[#This Row],[Stĺpec6]:[Stĺpec22]])=0,\"\",SUM(Klasifikácia[[#This Row],[Stĺpec6]:[Stĺpec22]]))","v":""},{"$f":"IFERROR(IF(Klasifikácia[[#This Row],[Priemer]]<>\"\",HLOOKUP(Klasifikácia[[#This Row],[Priemer]]*CelkovýPočetBodov,KlasifikačnýHárok,3),\"\"),0)","v":""},{"$f":"IFERROR(IF(Klasifikácia[[#This Row],[Priemer]]<>\"\",HLOOKUP(Klasifikácia[[#This Row],[Priemer]]*CelkovýPočetBodov,KlasifikačnýHárok,4),\"\"),0)","v":""}]
[{"$nulls":3},{"$f":"IFERROR(IF(COUNT(Klasifikácia[[#This Row],[Stĺpec6]:[Stĺpec22]])=0,\"\",SUM(Klasifikácia[[#This Row],[Stĺpec6]:[Stĺpec22]])/CelkovýPočetBodov),\"\")","v":""},{"$f":"IF(COUNT(Klasifikácia[[#This Row],[Stĺpec6]:[Stĺpec22]])=0,\"\",SUM(Klasifikácia[[#This Row],[Stĺpec6]:[Stĺpec22]]))","v":""},{"$f":"IFERROR(IF(Klasifikácia[[#This Row],[Priemer]]<>\"\",HLOOKUP(Klasifikácia[[#This Row],[Priemer]]*CelkovýPočetBodov,KlasifikačnýHárok,3),\"\"),0)","v":""},{"$f":"IFERROR(IF(Klasifikácia[[#This Row],[Priemer]]<>\"\",HLOOKUP(Klasifikácia[[#This Row],[Priemer]]*CelkovýPočetBodov,KlasifikačnýHárok,4),\"\"),0)","v":""}]
[{"$nulls":3},{"$f":"IFERROR(IF(COUNT(Klasifikácia[[#This Row],[Stĺpec6]:[Stĺpec22]])=0,\"\",SUM(Klasifikácia[[#This Row],[Stĺpec6]:[Stĺpec22]])/CelkovýPočetBodov),\"\")","v":""},{"$f":"IF(COUNT(Klasifikácia[[#This Row],[Stĺpec6]:[Stĺpec22]])=0,\"\",SUM(Klasifikácia[[#This Row],[Stĺpec6]:[Stĺpec22]]))","v":""},{"$f":"IFERROR(IF(Klasifikácia[[#This Row],[Priemer]]<>\"\",HLOOKUP(Klasifikácia[[#This Row],[Priemer]]*CelkovýPočetBodov,KlasifikačnýHárok,3),\"\"),0)","v":""},{"$f":"IFERROR(IF(Klasifikácia[[#This Row],[Priemer]]<>\"\",HLOOKUP(Klasifikácia[[#This Row],[Priemer]]*CelkovýPočetBodov,KlasifikačnýHárok,4),\"\"),0)","v":""}]
[]
[null,"Súhrn vyučovacieho predmetu",null,"Priemer",null,"Klasifikácia","Študijný priemer","","","","","","","","","","",""]
[null," Priemer",null,{"$f":"IFERROR(AVERAGE(Klasifikácia[[#All],[Priemer]]),0)","v":{"v":0.9550000000000001,"d":"95.5%"}},null,{"$f":"IFERROR(HLOOKUP(D22*CelkovýPočetBodov,KlasifikačnýHárok,3),\"\")","v":"A"},{"$f":"IFERROR(AVERAGE(Klasifikácia[[#All],[Študijný priemer]]),0)","v":{"v":3.835,"d":"3.84"}},"","","","","","","","","","","","","","","","",""]
[null," Najvyššie skóre",null,{"$f":"IFERROR(MAX(Klasifikácia[[#All],[Priemer]]),0)","v":{"v":1,"d":"100.0%"}},null,{"$f":"IFERROR(HLOOKUP(D23*CelkovýPočetBodov,KlasifikačnýHárok,3),\"\")","v":"A+"},{"$f":"IFERROR(MAX(Klasifikácia[[#All],[Študijný priemer]]),0)","v":{"v":4,"d":"4.00"}},"","","","","","","","","","","","","","","","",""]
[null," Najnižšie skóre",null,{"$f":"IFERROR(MIN(Klasifikácia[[#All],[Priemer]]),0)","v":{"v":0.91,"d":"91.0%"}},null,{"$f":"IFERROR(HLOOKUP(D24*CelkovýPočetBodov,KlasifikačnýHárok,3),\"\")","v":"A-"},{"$f":"IFERROR(MIN(Klasifikácia[[#All],[Študijný priemer]]),0)","v":3.67},"","","","","","","","","","","","","","","","",""]